[Event "*** SCC Grand Prix: Titled Tuesday Blitz"]
[Site "Chess.com"]
[Date "2020.06.23"]
[Round "6"]
[White "Michaelson_11"]
[Black "ljuks68"]
[Result "0-1"]
[WhiteElo "2073"]
[BlackElo "2380"]
[TimeControl "180+1"]
[EndTime "11:07:03 PDT"]
[Termination "ljuks68 won on time"]

1. e4 {[%clk 0:03:00.9]} 1... e6 {[%clk 0:02:59.6]} 2. d4 {[%clk 0:03:00.5]}
2... d5 {[%clk 0:03:00]} 3. Nc3 {[%clk 0:03:01.3]} 3... Bb4 {[%clk 0:02:59.5]}
4. e5 {[%clk 0:03:01.1]} 4... Ne7 {[%clk 0:02:59.6]} 5. a3 {[%clk 0:03:01.5]}
5... Bxc3+ {[%clk 0:02:59.4]} 6. bxc3 {[%clk 0:03:02.4]} 6... c5 {[%clk
0:02:59.7]} 7. Qg4 {[%clk 0:03:03.1]} 7... Qc7 {[%clk 0:02:59.1]} 8. Bd3 {[%clk
0:03:01.6]} 8... cxd4 {[%clk 0:02:46.9]} 9. Ne2 {[%clk 0:02:59]} 9... O-O {[%clk
0:02:33.2]} 10. cxd4 {[%clk 0:02:51]} 10... f5 {[%clk 0:02:27.1]} 11. exf6
{[%clk 0:02:40.3]} 11... Rxf6 {[%clk 0:02:27]} 12. Bg5 {[%clk 0:02:31.3]} 12...
Rf7 {[%clk 0:02:26.5]} 13. O-O {[%clk 0:02:29.9]} 13... e5 {[%clk 0:02:12.4]}
14. Qg3 {[%clk 0:02:26.5]} 14... Nbc6 {[%clk 0:02:08.5]} 15. dxe5 {[%clk
0:02:11.1]} 15... Qxe5 {[%clk 0:02:07.9]} 16. Bf4 {[%clk 0:02:02.1]} 16... Qh5
{[%clk 0:01:53]} 17. Nc3 {[%clk 0:01:46.8]} 17... Nf5 {[%clk 0:01:46.7]} 18.
Bxf5 {[%clk 0:01:40.9]} 18... Qxf5 {[%clk 0:01:45.7]} 19. Rfe1 {[%clk
0:01:32.5]} 19... Bd7 {[%clk 0:01:42]} 20. Be5 {[%clk 0:01:21.3]} 20... Re8
{[%clk 0:01:16.8]} 21. f4 {[%clk 0:01:16.5]} 21... Nxe5 {[%clk 0:01:00.1]} 22.
fxe5 {[%clk 0:01:13.1]} 22... Bc6 {[%clk 0:00:59.3]} 23. Rad1 {[%clk 0:00:59.6]}
23... Rd7 {[%clk 0:00:44.2]} 24. Qd3 {[%clk 0:00:42.7]} 24... Rxe5 {[%clk
0:00:36.7]} 25. Qxf5 {[%clk 0:00:41.3]} 25... Rxf5 {[%clk 0:00:36.7]} 26. Ne2
{[%clk 0:00:42.2]} 26... Rdf7 {[%clk 0:00:28.3]} 27. Nd4 {[%clk 0:00:39.9]}
27... Rf2 {[%clk 0:00:27.5]} 28. Re8+ {[%clk 0:00:35.8]} 28... Rf8 {[%clk
0:00:27.2]} 29. Rxf8+ {[%clk 0:00:30.6]} 29... Rxf8 {[%clk 0:00:26.3]} 30. Re1
{[%clk 0:00:29.5]} 30... Rf4 {[%clk 0:00:25.5]} 31. c3 {[%clk 0:00:28]} 31...
Kf7 {[%clk 0:00:23.4]} 32. g3 {[%clk 0:00:24.9]} 32... Re4 {[%clk 0:00:18.8]}
33. Rxe4 {[%clk 0:00:23.6]} 33... dxe4 {[%clk 0:00:18.4]} 34. Kf2 {[%clk
0:00:24.5]} 34... Kf6 {[%clk 0:00:17.7]} 35. Ke3 {[%clk 0:00:24.1]} 35... Ke5
{[%clk 0:00:17.8]} 36. Nb3 {[%clk 0:00:21.5]} 36... Kd5 {[%clk 0:00:16.5]} 37.
Na5 {[%clk 0:00:18.9]} 37... g5 {[%clk 0:00:15.8]} 38. c4+ {[%clk 0:00:18.1]}
38... Kc5 {[%clk 0:00:15.6]} 39. h4 {[%clk 0:00:10]} 39... gxh4 {[%clk
0:00:13.7]} 40. gxh4 {[%clk 0:00:10.9]} 40... h5 {[%clk 0:00:12.7]} 41. Kf4
{[%clk 0:00:09.1]} 41... Kd4 {[%clk 0:00:11.4]} 42. c5 {[%clk 0:00:05.8]} 42...
Kd3 {[%clk 0:00:10]} 43. Nb3 {[%clk 0:00:02.9]} 43... e3 {[%clk 0:00:09.7]} 44.
Kg5 {[%clk 0:00:02.1]} 44... Kc3 {[%clk 0:00:07.6]} 45. Nc1 {[%clk 0:00:02.5]}
45... Kd2 {[%clk 0:00:07]} 46. Nb3+ {[%clk 0:00:02.1]} 46... Kc2 {[%clk
0:00:07.1]} 47. Nd4+ {[%clk 0:00:02.3]} 47... Kd3 {[%clk 0:00:07.2]} 48. Nb3
{[%clk 0:00:01.3]} 48... Bd5 {[%clk 0:00:05.8]} 0-1

[Event "*** SCC Grand Prix: Titled Tuesday Blitz"]
[Site "Chess.com"]
[Date "2020.06.23"]
[Round "6"]
[White "kingmonkey2006"]
[Black "eightbyeightchess"]
[Result "1-0"]
[WhiteElo "2582"]
[BlackElo "2410"]
[TimeControl "180+1"]
[EndTime "11:07:04 PDT"]
[Termination "kingmonkey2006 won by resignation"]

1. e4 {[%clk 0:03:00.8]} 1... d5 {[%clk 0:02:55.6]} 2. exd5 {[%clk 0:02:56.5]}
2... Nf6 {[%clk 0:02:55.8]} 3. Bb5+ {[%clk 0:02:55]} 3... Bd7 {[%clk 0:02:54.5]}
4. Bc4 {[%clk 0:02:51]} 4... Bg4 {[%clk 0:02:53.3]} 5. f3 {[%clk 0:02:39.8]}
5... Bf5 {[%clk 0:02:52.7]} 6. Nc3 {[%clk 0:02:37.4]} 6... Nbd7 {[%clk
0:02:46.7]} 7. g4 {[%clk 0:02:37.4]} 7... Bg6 {[%clk 0:02:45.7]} 8. Nge2 {[%clk
0:02:17.8]} 8... a6 {[%clk 0:02:44.2]} 9. Nf4 {[%clk 0:02:09.4]} 9... b5 {[%clk
0:02:35.3]} 10. Bb3 {[%clk 0:02:09.4]} 10... Nc5 {[%clk 0:02:28.5]} 11. g5
{[%clk 0:01:51.2]} 11... Nh5 {[%clk 0:02:20.5]} 12. Nxh5 {[%clk 0:01:31.9]}
12... Bxh5 {[%clk 0:02:19.4]} 13. d3 {[%clk 0:01:30.7]} 13... Nxb3 {[%clk
0:02:16.4]} 14. axb3 {[%clk 0:01:31.6]} 14... e6 {[%clk 0:02:16.6]} 15. dxe6
{[%clk 0:01:27.7]} 15... fxe6 {[%clk 0:02:17.5]} 16. Qe2 {[%clk 0:01:27.9]}
16... Qd7 {[%clk 0:02:04]} 17. Bd2 {[%clk 0:01:23.7]} 17... Be7 {[%clk 0:01:45]}
18. Ne4 {[%clk 0:01:11.9]} 18... O-O {[%clk 0:01:42.5]} 19. Rf1 {[%clk
0:01:12.7]} 19... a5 {[%clk 0:01:28.8]} 20. Ng3 {[%clk 0:01:11.2]} 20... Bg6
{[%clk 0:01:20.7]} 21. h4 {[%clk 0:01:10.7]} 21... Qd4 {[%clk 0:01:11.2]} 22.
Qxe6+ {[%clk 0:00:57.8]} 22... Kh8 {[%clk 0:01:10.6]} 23. O-O-O {[%clk
0:00:49.3]} 23... Ba3 {[%clk 0:01:08.4]} 24. Bc3 {[%clk 0:00:32.9]} 24... Qxc3
{[%clk 0:01:06.8]} 25. bxa3 {[%clk 0:00:33.6]} 25... Qa1+ {[%clk 0:01:03.9]} 26.
Kd2 {[%clk 0:00:33.4]} 26... Qxa3 {[%clk 0:01:04.8]} 27. Qg4 {[%clk 0:00:17.3]}
27... a4 {[%clk 0:00:30.2]} 28. h5 {[%clk 0:00:15.5]} 28... Be8 {[%clk
0:00:29.1]} 29. h6 {[%clk 0:00:15.2]} 29... Qe7 {[%clk 0:00:19.8]} 30. Rde1
{[%clk 0:00:13.1]} 30... Qf7 {[%clk 0:00:16.4]} 31. b4 {[%clk 0:00:10.3]} 31...
Bd7 {[%clk 0:00:15.1]} 32. Qd4 {[%clk 0:00:10.5]} 32... Kg8 {[%clk 0:00:14.2]}
33. Nh5 {[%clk 0:00:08.1]} 33... Bf5 {[%clk 0:00:07.9]} 34. hxg7 {[%clk
0:00:05.8]} 34... Qxh5 {[%clk 0:00:07.1]} 35. gxf8=Q+ {[%clk 0:00:05.8]} 35...
Rxf8 {[%clk 0:00:08]} 36. Qd5+ {[%clk 0:00:06.1]} 36... Kg7 {[%clk 0:00:06.7]}
37. f4 {[%clk 0:00:06.3]} 37... Qh2+ {[%clk 0:00:05.9]} 38. Re2 {[%clk
0:00:06.1]} 38... Qh5 {[%clk 0:00:06.8]} 39. Re7+ {[%clk 0:00:06.4]} 39... Rf7
{[%clk 0:00:07.1]} 40. Qxf7+ {[%clk 0:00:06.1]} 40... Qxf7 {[%clk 0:00:08]} 41.
Rxf7+ {[%clk 0:00:07]} 41... Kxf7 {[%clk 0:00:08.9]} 42. c4 {[%clk 0:00:07.6]}
42... bxc4 {[%clk 0:00:08.5]} 43. dxc4 {[%clk 0:00:08.5]} 43... a3 {[%clk
0:00:09.4]} 44. Ra1 {[%clk 0:00:09]} 44... Be6 {[%clk 0:00:09.4]} 45. Kc3 {[%clk
0:00:09.1]} 45... Kg6 {[%clk 0:00:09.7]} 46. Rxa3 {[%clk 0:00:09.6]} 46... Kf5
{[%clk 0:00:10.6]} 47. Ra7 {[%clk 0:00:09.3]} 47... Kxf4 {[%clk 0:00:10.5]} 48.
Rxc7 {[%clk 0:00:09.9]} 48... Kxg5 {[%clk 0:00:11.4]} 49. Rxh7 {[%clk
0:00:10.3]} 1-0

[Event "*** SCC Grand Prix: Titled Tuesday Blitz"]
[Site "Chess.com"]
[Date "2020.06.23"]
[Round "6"]
[White "mamey78"]
[Black "Escanor89"]
[Result "0-1"]
[WhiteElo "2348"]
[BlackElo "2566"]
[TimeControl "180+1"]
[EndTime "11:07:04 PDT"]
[Termination "Escanor89 won on time"]

1. e4 {[%clk 0:03:00.8]} 1... c5 {[%clk 0:01:52.2]} 2. Nf3 {[%clk 0:02:53.1]}
2... d6 {[%clk 0:01:52.1]} 3. d4 {[%clk 0:02:52.1]} 3... cxd4 {[%clk 0:01:52.2]}
4. Nxd4 {[%clk 0:02:49.7]} 4... Nf6 {[%clk 0:01:52.7]} 5. Nc3 {[%clk 0:02:49.6]}
5... Nc6 {[%clk 0:01:53.2]} 6. Bc4 {[%clk 0:02:48.2]} 6... e5 {[%clk 0:01:52.5]}
7. Nf5 {[%clk 0:02:40.8]} 7... Be6 {[%clk 0:01:52.1]} 8. Bb3 {[%clk 0:02:36.9]}
8... Nxe4 {[%clk 0:01:41.1]} 9. Bxe6 {[%clk 0:02:02.7]} 9... fxe6 {[%clk
0:01:26.2]} 10. Nxg7+ {[%clk 0:01:55.6]} 10... Bxg7 {[%clk 0:01:26]} 11. Qh5+
{[%clk 0:01:54.7]} 11... Kd7 {[%clk 0:01:05.9]} 12. Nxe4 {[%clk 0:01:54.3]}
12... Kc7 {[%clk 0:01:04.3]} 13. O-O {[%clk 0:01:47.4]} 13... Qe8 {[%clk
0:00:56.4]} 14. Qd1 {[%clk 0:01:33.7]} 14... Rd8 {[%clk 0:00:54.5]} 15. c3
{[%clk 0:01:29.2]} 15... Qg6 {[%clk 0:00:53.3]} 16. Qe2 {[%clk 0:01:25.7]} 16...
Rhg8 {[%clk 0:00:50]} 17. b4 {[%clk 0:01:21]} 17... d5 {[%clk 0:00:38.9]} 18.
Nc5 {[%clk 0:01:16.4]} 18... Bf8 {[%clk 0:00:37.3]} 19. f4 {[%clk 0:00:54.9]}
19... Bxc5+ {[%clk 0:00:35.5]} 20. bxc5 {[%clk 0:00:54.5]} 20... e4 {[%clk
0:00:13.4]} 21. Be3 {[%clk 0:00:49]} 21... Kc8 {[%clk 0:00:11.9]} 22. Rab1
{[%clk 0:00:47.4]} 22... Rd7 {[%clk 0:00:11.9]} 23. Rb2 {[%clk 0:00:38.1]} 23...
Qg4 {[%clk 0:00:12]} 24. Qd2 {[%clk 0:00:24.7]} 24... Rg6 {[%clk 0:00:11.6]} 25.
Rf2 {[%clk 0:00:21.8]} 25... Qf5 {[%clk 0:00:11.4]} 26. Rb1 {[%clk 0:00:16.5]}
26... h5 {[%clk 0:00:11.3]} 27. Qb2 {[%clk 0:00:15.8]} 27... Rgg7 {[%clk
0:00:11]} 28. a4 {[%clk 0:00:14.9]} 28... h4 {[%clk 0:00:09.8]} 29. Rd1 {[%clk
0:00:13.6]} 29... Rc7 {[%clk 0:00:08.2]} 30. Kh1 {[%clk 0:00:11.9]} 30... h3
{[%clk 0:00:08.3]} 31. g3 {[%clk 0:00:10.7]} 31... Na5 {[%clk 0:00:07.6]} 32.
Bd4 {[%clk 0:00:09.8]} 32... Nc4 {[%clk 0:00:07.2]} 33. Qe2 {[%clk 0:00:09.4]}
33... Rg6 {[%clk 0:00:05.4]} 34. Rff1 {[%clk 0:00:08.8]} 34... Rf7 {[%clk
0:00:05]} 35. Be3 {[%clk 0:00:08]} 35... Qg4 {[%clk 0:00:05.1]} 36. Qe1 {[%clk
0:00:07]} 36... Qf5 {[%clk 0:00:05]} 37. Bd4 {[%clk 0:00:06.5]} 37... Rg8 {[%clk
0:00:03.1]} 38. Be3 {[%clk 0:00:06]} 38... Rg6 {[%clk 0:00:02.6]} 39. Bd4 {[%clk
0:00:05.7]} 39... Rg4 {[%clk 0:00:03.3]} 40. Be3 {[%clk 0:00:05.3]} 40... e5
{[%clk 0:00:03.1]} 41. Bc1 {[%clk 0:00:02.1]} 41... exf4 {[%clk 0:00:02.9]} 0-1

[Event "*** SCC Grand Prix: Titled Tuesday Blitz"]
[Site "Chess.com"]
[Date "2020.06.23"]
[Round "6"]
[White "swisspower96"]
[Black "Matibar"]
[Result "0-1"]
[WhiteElo "2625"]
[BlackElo "2822"]
[TimeControl "180+1"]
[EndTime "11:07:06 PDT"]
[Termination "Matibar won by resignation"]

1. d4 {[%clk 0:03:00.9]} 1... e6 {[%clk 0:02:55.5]} 2. c4 {[%clk 0:03:01.1]}
2... b6 {[%clk 0:02:53.9]} 3. e4 {[%clk 0:02:58.3]} 3... Bb7 {[%clk 0:02:50.7]}
4. Bd3 {[%clk 0:02:58.5]} 4... Bb4+ {[%clk 0:02:50.3]} 5. Kf1 {[%clk 0:02:58.8]}
5... Nc6 {[%clk 0:02:45.1]} 6. Nf3 {[%clk 0:02:58.5]} 6... Be7 {[%clk
0:02:33.5]} 7. Nc3 {[%clk 0:02:52.7]} 7... d6 {[%clk 0:02:31.9]} 8. g3 {[%clk
0:02:51.7]} 8... Nf6 {[%clk 0:02:31.9]} 9. Kg2 {[%clk 0:02:51.9]} 9... O-O
{[%clk 0:02:29.1]} 10. h3 {[%clk 0:02:45.8]} 10... a5 {[%clk 0:02:25.3]} 11. a3
{[%clk 0:02:42.3]} 11... e5 {[%clk 0:02:25.2]} 12. d5 {[%clk 0:02:36.6]} 12...
Nb8 {[%clk 0:02:24.1]} 13. Be3 {[%clk 0:02:33.6]} 13... Na6 {[%clk 0:02:22.8]}
14. Bc2 {[%clk 0:02:30.5]} 14... Nd7 {[%clk 0:02:13.3]} 15. Rb1 {[%clk
0:02:24.7]} 15... g6 {[%clk 0:01:42.7]} 16. Bh6 {[%clk 0:01:58.1]} 16... Re8
{[%clk 0:01:40.1]} 17. b4 {[%clk 0:01:50.9]} 17... Bf8 {[%clk 0:01:36]} 18. Bg5
{[%clk 0:01:42.7]} 18... f6 {[%clk 0:01:35.3]} 19. Be3 {[%clk 0:01:42]} 19...
axb4 {[%clk 0:01:24.3]} 20. axb4 {[%clk 0:01:42.1]} 20... Qe7 {[%clk 0:01:24]}
21. Qd2 {[%clk 0:01:34.2]} 21... Qf7 {[%clk 0:01:14.7]} 22. Nh4 {[%clk 0:01:17]}
22... Be7 {[%clk 0:01:10.6]} 23. Qe2 {[%clk 0:00:52.8]} 23... Nf8 {[%clk
0:01:05.8]} 24. Kh2 {[%clk 0:00:41]} 24... Nb8 {[%clk 0:00:58.5]} 25. Rhf1
{[%clk 0:00:34.2]} 25... Nbd7 {[%clk 0:00:58.6]} 26. Nb5 {[%clk 0:00:33.6]}
26... Rec8 {[%clk 0:00:57.9]} 27. Ra1 {[%clk 0:00:31.7]} 27... Bd8 {[%clk
0:00:57.6]} 28. Ng2 {[%clk 0:00:24.2]} 28... f5 {[%clk 0:00:41.3]} 29. exf5
{[%clk 0:00:23.9]} 29... gxf5 {[%clk 0:00:41.6]} 30. f4 {[%clk 0:00:24.4]} 30...
e4 {[%clk 0:00:40.2]} 31. g4 {[%clk 0:00:22.2]} 31... Nf6 {[%clk 0:00:37.3]} 32.
Nd4 {[%clk 0:00:19.7]} 32... fxg4 {[%clk 0:00:35.9]} 33. hxg4 {[%clk 0:00:20]}
33... c5 {[%clk 0:00:36.1]} 34. dxc6 {[%clk 0:00:19.7]} 34... Bxc6 {[%clk
0:00:35.5]} 35. Nxc6 {[%clk 0:00:17.3]} 35... Rxa1 {[%clk 0:00:33.5]} 36. Nxd8
{[%clk 0:00:17.6]} 36... Qa7 {[%clk 0:00:32.5]} 37. g5 {[%clk 0:00:11.4]} 37...
Rxf1 {[%clk 0:00:32]} 38. Qxf1 {[%clk 0:00:11.4]} 38... Ng4+ {[%clk 0:00:31.9]}
39. Kg3 {[%clk 0:00:09.8]} 39... Nxe3 {[%clk 0:00:32.2]} 40. Qe2 {[%clk
0:00:08.5]} 40... Nxg2 {[%clk 0:00:29.8]} 41. Qxe4 {[%clk 0:00:07.6]} 41... Rxd8
{[%clk 0:00:29.4]} 42. Qd5+ {[%clk 0:00:08.1]} 42... Qf7 {[%clk 0:00:29]} 43.
Qxg2 {[%clk 0:00:07.2]} 43... Qxc4 {[%clk 0:00:28.3]} 44. Be4 {[%clk 0:00:07.6]}
44... d5 {[%clk 0:00:27]} 45. Bf5 {[%clk 0:00:07.4]} 45... Qc3+ {[%clk
0:00:27.1]} 46. Kg4 {[%clk 0:00:07.8]} 46... Qg7 {[%clk 0:00:27.1]} 47. Qe2
{[%clk 0:00:07.7]} 47... Qf7 {[%clk 0:00:24.8]} 48. Bd3 {[%clk 0:00:07.4]} 48...
Qe6+ {[%clk 0:00:23.5]} 49. Qxe6+ {[%clk 0:00:05.8]} 49... Nxe6 {[%clk
0:00:24.4]} 50. f5 {[%clk 0:00:06.7]} 50... Nf8 {[%clk 0:00:22.5]} 51. f6 {[%clk
0:00:07.1]} 51... Kf7 {[%clk 0:00:22.4]} 52. Kf5 {[%clk 0:00:07.8]} 52... Re8
{[%clk 0:00:21.7]} 53. Bb5 {[%clk 0:00:07.2]} 53... Re1 {[%clk 0:00:20.8]} 54.
Bc6 {[%clk 0:00:07.8]} 54... Rf1+ {[%clk 0:00:20.8]} 55. Kg4 {[%clk 0:00:08.1]}
55... Rd1 {[%clk 0:00:20.4]} 56. Kf5 {[%clk 0:00:08.7]} 56... Ne6 {[%clk
0:00:20.1]} 57. Bd7 {[%clk 0:00:08.6]} 57... Nd4+ {[%clk 0:00:20.4]} 58. Kf4
{[%clk 0:00:08.6]} 58... Rf1+ {[%clk 0:00:19.9]} 59. Ke5 {[%clk 0:00:09.1]}
59... Nf3+ {[%clk 0:00:20.3]} 60. Kd6 {[%clk 0:00:09]} 60... Nxg5 {[%clk
0:00:20.4]} 0-1

[Event "*** SCC Grand Prix: Titled Tuesday Blitz"]
[Site "Chess.com"]
[Date "2020.06.23"]
[Round "6"]
[White "Thipsay"]
[Black "tsvet2005"]
[Result "0-1"]
[WhiteElo "2475"]
[BlackElo "2638"]
[TimeControl "180+1"]
[EndTime "11:07:06 PDT"]
[Termination "tsvet2005 won by resignation"]

1. e4 {[%clk 0:03:00.9]} 1... c5 {[%clk 0:03:00.6]} 2. Nf3 {[%clk 0:03:00.8]}
2... d6 {[%clk 0:03:01.1]} 3. d4 {[%clk 0:03:01]} 3... cxd4 {[%clk 0:03:02]} 4.
Nxd4 {[%clk 0:03:00.8]} 4... Nf6 {[%clk 0:03:02.9]} 5. Nc3 {[%clk 0:03:00.8]}
5... a6 {[%clk 0:03:03.4]} 6. Be2 {[%clk 0:03:00.8]} 6... e5 {[%clk 0:03:03.1]}
7. Nb3 {[%clk 0:03:00.7]} 7... Be7 {[%clk 0:03:03.5]} 8. O-O {[%clk 0:03:00.7]}
8... O-O {[%clk 0:03:03.6]} 9. Kh1 {[%clk 0:03:00.9]} 9... b5 {[%clk 0:03:01]}
10. a4 {[%clk 0:03:00.2]} 10... b4 {[%clk 0:03:01.1]} 11. Nd5 {[%clk 0:03:00.2]}
11... Nxd5 {[%clk 0:03:01.6]} 12. Qxd5 {[%clk 0:02:59.4]} 12... Ra7 {[%clk
0:03:02.1]} 13. Be3 {[%clk 0:02:53.1]} 13... Be6 {[%clk 0:03:01.9]} 14. Qd2
{[%clk 0:02:51.8]} 14... Rd7 {[%clk 0:03:01.4]} 15. f4 {[%clk 0:02:49.9]} 15...
d5 {[%clk 0:02:58.8]} 16. f5 {[%clk 0:02:48.4]} 16... dxe4 {[%clk 0:02:58.2]}
17. Qe1 {[%clk 0:02:39.9]} 17... Bd5 {[%clk 0:02:51.5]} 18. a5 {[%clk 0:02:40]}
18... Nc6 {[%clk 0:02:44.7]} 19. Bxa6 {[%clk 0:02:38.2]} 19... Bxb3 {[%clk
0:02:40.9]} 20. cxb3 {[%clk 0:02:37.5]} 20... Nxa5 {[%clk 0:02:40.4]} 21. Bb5
{[%clk 0:01:36.6]} 21... Rb7 {[%clk 0:02:33.6]} 22. Ba4 {[%clk 0:01:36.5]} 22...
Qc8 {[%clk 0:02:07.6]} 23. h3 {[%clk 0:01:23.6]} 23... Rd8 {[%clk 0:01:59.5]}
24. Rc1 {[%clk 0:01:13.5]} 24... Qb8 {[%clk 0:01:51.4]} 25. f6 {[%clk
0:01:09.4]} 25... gxf6 {[%clk 0:01:39.2]} 26. Bh6 {[%clk 0:01:06.9]} 26... Kh8
{[%clk 0:01:36.4]} 27. Qxe4 {[%clk 0:01:03.4]} 27... Rc7 {[%clk 0:01:36.2]} 28.
Rcd1 {[%clk 0:00:55.7]} 28... Rcc8 {[%clk 0:01:26.2]} 29. Rd5 {[%clk 0:00:53.2]}
29... Nb7 {[%clk 0:01:13.6]} 30. Bb5 {[%clk 0:00:46.4]} 30... Nd6 {[%clk
0:01:07.3]} 31. Rxd6 {[%clk 0:00:46.4]} 31... Qxd6 {[%clk 0:00:57.9]} 32. Bc4
{[%clk 0:00:46.3]} 32... Qd4 {[%clk 0:00:51.3]} 33. Qf5 {[%clk 0:00:43.1]} 33...
Rxc4 {[%clk 0:00:45.6]} 34. bxc4 {[%clk 0:00:42.5]} 34... Qxc4 {[%clk
0:00:46.5]} 35. Kh2 {[%clk 0:00:37.2]} 35... Rg8 {[%clk 0:00:43.3]} 36. Re1
{[%clk 0:00:22.1]} 36... Qe6 {[%clk 0:00:32.5]} 37. Qe4 {[%clk 0:00:18]} 37...
f5 {[%clk 0:00:15.7]} 38. Qxe5+ {[%clk 0:00:17.8]} 38... Qxe5+ {[%clk
0:00:16.6]} 39. Rxe5 {[%clk 0:00:18]} 39... Bd6 {[%clk 0:00:17.1]} 40. Bf4
{[%clk 0:00:18]} 40... Bxe5 {[%clk 0:00:16.8]} 41. Bxe5+ {[%clk 0:00:18.2]}
41... Rg7 {[%clk 0:00:17.5]} 42. Bxg7+ {[%clk 0:00:16.4]} 42... Kxg7 {[%clk
0:00:18.4]} 43. Kg3 {[%clk 0:00:17.1]} 43... Kf6 {[%clk 0:00:17.8]} 44. Kf4
{[%clk 0:00:13.3]} 44... h6 {[%clk 0:00:18]} 45. b3 {[%clk 0:00:12.9]} 45... Ke6
{[%clk 0:00:17.4]} 46. g3 {[%clk 0:00:12.7]} 46... Kf6 {[%clk 0:00:17.8]} 47.
Kf3 {[%clk 0:00:12.8]} 47... Ke5 {[%clk 0:00:17.8]} 48. Ke3 {[%clk 0:00:13.1]}
48... h5 {[%clk 0:00:14.8]} 49. h4 {[%clk 0:00:12.6]} 49... f6 {[%clk
0:00:14.1]} 50. Kf3 {[%clk 0:00:11.9]} 50... f4 {[%clk 0:00:14.6]} 51. gxf4+
{[%clk 0:00:11.3]} 51... Kf5 {[%clk 0:00:15]} 52. Ke3 {[%clk 0:00:11.2]} 52...
Kg4 {[%clk 0:00:15.4]} 53. Ke4 {[%clk 0:00:11.4]} 53... Kxh4 {[%clk 0:00:15.6]}
54. Kf3 {[%clk 0:00:11.6]} 54... f5 {[%clk 0:00:14.9]} 55. Ke3 {[%clk
0:00:10.4]} 55... Kg4 {[%clk 0:00:15.8]} 0-1

[Event "*** SCC Grand Prix: Titled Tuesday Blitz"]
[Site "Chess.com"]
[Date "2020.06.23"]
[Round "6"]
[White "MatyChess1"]
[Black "Pavel_Mir"]
[Result "1-0"]
[WhiteElo "2540"]
[BlackElo "2342"]
[TimeControl "180+1"]
[EndTime "11:07:06 PDT"]
[Termination "MatyChess1 won by checkmate"]

1. d4 {[%clk 0:03:00.9]} 1... Nf6 {[%clk 0:02:58.2]} 2. c4 {[%clk 0:03:00]} 2...
c6 {[%clk 0:02:58.7]} 3. Nf3 {[%clk 0:02:58.7]} 3... d5 {[%clk 0:02:59.2]} 4. g3
{[%clk 0:02:59.6]} 4... g6 {[%clk 0:02:57.5]} 5. Qa4 {[%clk 0:02:55.9]} 5...
dxc4 {[%clk 0:02:53.2]} 6. Qxc4 {[%clk 0:02:54.3]} 6... Bg7 {[%clk 0:02:53.8]}
7. Bg2 {[%clk 0:02:53.8]} 7... O-O {[%clk 0:02:54.4]} 8. O-O {[%clk 0:02:54.3]}
8... b5 {[%clk 0:02:52.6]} 9. Qc2 {[%clk 0:02:48.4]} 9... Bf5 {[%clk 0:02:52.2]}
10. Qb3 {[%clk 0:02:43.4]} 10... Be6 {[%clk 0:02:47.6]} 11. Qc2 {[%clk
0:02:38.5]} 11... Bf5 {[%clk 0:02:46.4]} 12. Qd1 {[%clk 0:02:38.9]} 12... Qc8
{[%clk 0:02:28.3]} 13. Re1 {[%clk 0:02:37]} 13... Bh3 {[%clk 0:02:20.7]} 14. Bh1
{[%clk 0:02:36.6]} 14... Rd8 {[%clk 0:02:14.8]} 15. Qc2 {[%clk 0:02:25.8]} 15...
Na6 {[%clk 0:02:08.6]} 16. Bg5 {[%clk 0:02:12.3]} 16... c5 {[%clk 0:02:02.8]}
17. dxc5 {[%clk 0:02:01]} 17... Qxc5 {[%clk 0:02:02.4]} 18. Qxc5 {[%clk
0:01:49.5]} 18... Nxc5 {[%clk 0:02:02.1]} 19. Nc3 {[%clk 0:01:50.4]} 19... b4
{[%clk 0:01:54]} 20. Nb5 {[%clk 0:01:48.1]} 20... a6 {[%clk 0:01:34]} 21. Nbd4
{[%clk 0:01:43.7]} 21... h6 {[%clk 0:01:31.1]} 22. Bd2 {[%clk 0:01:33.2]} 22...
a5 {[%clk 0:01:04.7]} 23. Nc6 {[%clk 0:01:27.2]} 23... Re8 {[%clk 0:00:57.7]}
24. Be3 {[%clk 0:01:20.8]} 24... Na4 {[%clk 0:00:44.5]} 25. Bd4 {[%clk 0:01:05]}
25... Ra6 {[%clk 0:00:39.1]} 26. Rac1 {[%clk 0:01:00.7]} 26... Ne4 {[%clk
0:00:28.2]} 27. Rc2 {[%clk 0:00:46.6]} 27... Bf5 {[%clk 0:00:19.4]} 28. Bxg7
{[%clk 0:00:45.8]} 28... Kxg7 {[%clk 0:00:18.8]} 29. Nfd4 {[%clk 0:00:44.8]}
29... e5 {[%clk 0:00:13.3]} 30. Nxf5+ {[%clk 0:00:36.4]} 30... gxf5 {[%clk
0:00:13.9]} 31. g4 {[%clk 0:00:34.9]} 31... Nxb2 {[%clk 0:00:13.4]} 32. gxf5
{[%clk 0:00:30.8]} 32... Rxc6 {[%clk 0:00:10.9]} 33. Rxc6 {[%clk 0:00:28.8]}
33... Nc3 {[%clk 0:00:11.5]} 34. a3 {[%clk 0:00:24.2]} 34... Rb8 {[%clk
0:00:09.4]} 35. axb4 {[%clk 0:00:22.5]} 35... axb4 {[%clk 0:00:09.7]} 36. Bg2
{[%clk 0:00:15.6]} 36... Nbd1 {[%clk 0:00:09.7]} 37. Be4 {[%clk 0:00:12.7]}
37... b3 {[%clk 0:00:08.5]} 38. f6+ {[%clk 0:00:11.5]} 38... Kf8 {[%clk
0:00:07.3]} 39. Bd3 {[%clk 0:00:10.5]} 39... b2 {[%clk 0:00:07]} 40. Kg2 {[%clk
0:00:10.4]} 40... Ke8 {[%clk 0:00:06.5]} 41. Ra6 {[%clk 0:00:09.5]} 41... Kd7
{[%clk 0:00:06.8]} 42. Bf5+ {[%clk 0:00:08.4]} 42... Kc7 {[%clk 0:00:06.9]} 43.
Ra7+ {[%clk 0:00:08.5]} 43... Kb6 {[%clk 0:00:06.9]} 44. Rxf7 {[%clk 0:00:09]}
44... Ka6 {[%clk 0:00:06.8]} 45. Rd7 {[%clk 0:00:07.2]} 45... b1=Q {[%clk
0:00:06.1]} 46. Bxb1 {[%clk 0:00:06.3]} 46... Ne3+ {[%clk 0:00:06.7]} 47. fxe3
{[%clk 0:00:05.9]} 47... Nxb1 {[%clk 0:00:07.4]} 48. Rc1 {[%clk 0:00:05.6]}
48... Rb2 {[%clk 0:00:05.7]} 49. f7 {[%clk 0:00:05.7]} 49... Rxe2+ {[%clk
0:00:05.2]} 50. Kf3 {[%clk 0:00:06.6]} 50... Nd2+ {[%clk 0:00:04.5]} 51. Rxd2
{[%clk 0:00:05.8]} 51... Rxd2 {[%clk 0:00:04.4]} 52. f8=Q {[%clk 0:00:06.4]}
52... Rf2+ {[%clk 0:00:04.7]} 53. Kxf2 {[%clk 0:00:06.3]} 53... e4 {[%clk
0:00:05.6]} 54. Qb4 {[%clk 0:00:05.3]} 54... h5 {[%clk 0:00:05.8]} 55. Ra1#
{[%clk 0:00:06.2]} 1-0